[Event "Early-Titled-Tuesday-Blitz-September-05-2023"]
[Site "Chess.com"]
[Date "2023.09.05"]
[Round "8"]
[White "nss13"]
[Black "GamayevOleg"]
[Result "1-0"]
[WhiteElo "2549"]
[BlackElo "2594"]
[TimeControl "180+1"]
[EndTime "9:27:58 PDT"]
[Termination "nss13 won on time"]

1. e4 {[%clk 0:03:00.9]} 1... e5 {[%clk 0:02:59]} 2. Nf3 {[%clk 0:03:01]} 2...
Nc6 {[%clk 0:02:58.6]} 3. Bb5 {[%clk 0:03:01.6]} 3... a6 {[%clk 0:02:58.4]} 4.
Ba4 {[%clk 0:03:02.2]} 4... Nf6 {[%clk 0:02:57.7]} 5. O-O {[%clk 0:03:02.2]}
5... Be7 {[%clk 0:02:57.7]} 6. Re1 {[%clk 0:03:02.8]} 6... b5 {[%clk 0:02:56.8]}
7. Bb3 {[%clk 0:03:03.4]} 7... d6 {[%clk 0:02:57.5]} 8. c3 {[%clk 0:03:03.5]}
8... O-O {[%clk 0:02:56.7]} 9. h3 {[%clk 0:03:03.8]} 9... Na5 {[%clk 0:02:56.6]}
10. Bc2 {[%clk 0:03:04.4]} 10... c5 {[%clk 0:02:57.1]} 11. d4 {[%clk 0:03:05.1]}
11... Qc7 {[%clk 0:02:57.5]} 12. d5 {[%clk 0:03:05.7]} 12... c4 {[%clk
0:02:57.5]} 13. b4 {[%clk 0:03:06]} 13... cxb3 {[%clk 0:02:54.6]} 14. axb3
{[%clk 0:03:06.9]} 14... Bd7 {[%clk 0:02:50.9]} 15. Ba3 {[%clk 0:03:06.3]} 15...
Rfc8 {[%clk 0:02:43.2]} 16. Nxe5 {[%clk 0:03:04.5]} 16... Be8 {[%clk 0:02:28.2]}
17. Nf3 {[%clk 0:02:48.8]} 17... Nb7 {[%clk 0:02:28.1]} 18. Re3 {[%clk 0:02:22]}
18... Bf8 {[%clk 0:02:19.4]} 19. Nbd2 {[%clk 0:02:21.4]} 19... Nc5 {[%clk
0:02:15.8]} 20. Nd4 {[%clk 0:02:15.5]} 20... a5 {[%clk 0:02:05.6]} 21. Bb2
{[%clk 0:02:13.6]} 21... g6 {[%clk 0:01:58.1]} 22. b4 {[%clk 0:01:27.4]} 22...
axb4 {[%clk 0:01:50.8]} 23. cxb4 {[%clk 0:01:27.3]} 23... Na4 {[%clk 0:01:50.4]}
24. Bxa4 {[%clk 0:01:25.1]} 24... bxa4 {[%clk 0:01:49.1]} 25. Nc6 {[%clk
0:00:30.2]} 25... Bg7 {[%clk 0:01:38.8]} 26. Rxa4 {[%clk 0:00:24.6]} 26... Bxc6
{[%clk 0:01:35]} 27. dxc6 {[%clk 0:00:21.5]} 27... Qxc6 {[%clk 0:01:35.9]} 28.
Rxa8 {[%clk 0:00:20.8]} 28... Qxa8 {[%clk 0:01:32.4]} 29. Qb3 {[%clk 0:00:19.6]}
29... Qb7 {[%clk 0:01:14.7]} 30. Rd3 {[%clk 0:00:18.6]} 30... Ne8 {[%clk
0:01:11.5]} 31. Bxg7 {[%clk 0:00:19]} 31... Kxg7 {[%clk 0:01:11.4]} 32. Kh2
{[%clk 0:00:17.5]} 32... Rb8 {[%clk 0:01:09.2]} 33. Qb2+ {[%clk 0:00:17.3]}
33... Kg8 {[%clk 0:01:09.4]} 34. Rb3 {[%clk 0:00:17.6]} 34... Qb5 {[%clk
0:01:08.9]} 35. Qd4 {[%clk 0:00:16.8]} 35... Rc8 {[%clk 0:01:03.7]} 36. Nf3
{[%clk 0:00:16.2]} 36... Rc2 {[%clk 0:01:03.3]} 37. Rc3 {[%clk 0:00:14.2]} 37...
Rxc3 {[%clk 0:01:00.4]} 38. Qxc3 {[%clk 0:00:15.1]} 38... Qb7 {[%clk 0:00:57.9]}
39. Qd4 {[%clk 0:00:14.9]} 39... Ng7 {[%clk 0:00:52.8]} 40. Qxd6 {[%clk
0:00:13.6]} 40... Qxe4 {[%clk 0:00:52.3]} 41. Qb8+ {[%clk 0:00:13.5]} 41... Ne8
{[%clk 0:00:52.2]} 42. b5 {[%clk 0:00:13.7]} 42... Kg7 {[%clk 0:00:51.6]} 43. b6
{[%clk 0:00:14.2]} 43... Nf6 {[%clk 0:00:45.9]} 44. b7 {[%clk 0:00:13.3]} 44...
Nd7 {[%clk 0:00:45.6]} 45. Qc7 {[%clk 0:00:11.9]} 45... Qe8 {[%clk 0:00:41.1]}
46. Qxd7 {[%clk 0:00:11.2]} 46... Qxd7 {[%clk 0:00:42]} 47. b8=Q {[%clk
0:00:11.5]} 47... f6 {[%clk 0:00:29.6]} 48. Qb6 {[%clk 0:00:10.5]} 48... h5
{[%clk 0:00:26.7]} 49. h4 {[%clk 0:00:10]} 49... Qg4 {[%clk 0:00:26]} 50. Qe3
{[%clk 0:00:08.8]} 50... Qa4 {[%clk 0:00:21.3]} 51. g3 {[%clk 0:00:09]} 51...
Qa8 {[%clk 0:00:20.5]} 52. Kg2 {[%clk 0:00:09.7]} 52... Qb7 {[%clk 0:00:20]} 53.
Qe6 {[%clk 0:00:09.1]} 53... Qa8 {[%clk 0:00:15.9]} 54. Qe7+ {[%clk 0:00:09]}
54... Kh6 {[%clk 0:00:16.4]} 55. Qxf6 {[%clk 0:00:09.4]} 55... Kh7 {[%clk
0:00:15.8]} 56. Qf7+ {[%clk 0:00:08.6]} 56... Kh6 {[%clk 0:00:16.4]} 57. Qf4+
{[%clk 0:00:09.5]} 57... Kh7 {[%clk 0:00:16]} 58. Kh2 {[%clk 0:00:10.2]} 58...
Qb7 {[%clk 0:00:14.1]} 59. Ng5+ {[%clk 0:00:10.3]} 59... Kg7 {[%clk 0:00:14.6]}
60. Qf3 {[%clk 0:00:10.6]} 60... Qe7 {[%clk 0:00:13.2]} 61. Kg2 {[%clk
0:00:10.3]} 61... Qd7 {[%clk 0:00:11.9]} 62. Qe4 {[%clk 0:00:09.6]} 62... Kh6
{[%clk 0:00:10]} 63. Qe6 {[%clk 0:00:07.4]} 63... Qb7+ {[%clk 0:00:05.9]} 64.
Nf3 {[%clk 0:00:05.9]} 64... Qc7 {[%clk 0:00:01.9]} 65. Qf6 {[%clk 0:00:05.3]}
1-0

[Event "Early-Titled-Tuesday-Blitz-September-05-2023"]
[Site "Chess.com"]
[Date "2023.09.05"]
[Round "8"]
[White "mishanick"]
[Black "Sibelephant"]
[Result "0-1"]
[WhiteElo "3068"]
[BlackElo "3162"]
[TimeControl "180+1"]
[EndTime "9:27:59 PDT"]
[Termination "Sibelephant won on time"]

1. d4 {[%clk 0:03:00.9]} 1... d5 {[%clk 0:02:56.1]} 2. c4 {[%clk 0:03:01.4]}
2... c6 {[%clk 0:02:55.8]} 3. Nf3 {[%clk 0:03:01.4]} 3... Nf6 {[%clk 0:02:55.8]}
4. Nc3 {[%clk 0:03:02]} 4... e6 {[%clk 0:02:55.9]} 5. e3 {[%clk 0:02:59.9]} 5...
Nbd7 {[%clk 0:02:55.4]} 6. Be2 {[%clk 0:02:57.9]} 6... b6 {[%clk 0:02:42.1]} 7.
O-O {[%clk 0:02:53.1]} 7... Bb7 {[%clk 0:02:36.7]} 8. a4 {[%clk 0:02:53.3]} 8...
Bb4 {[%clk 0:02:13.9]} 9. cxd5 {[%clk 0:02:43.5]} 9... cxd5 {[%clk 0:02:02.3]}
10. Bd2 {[%clk 0:02:40.5]} 10... O-O {[%clk 0:01:59.1]} 11. Qb3 {[%clk
0:02:36.2]} 11... Qe7 {[%clk 0:01:52.5]} 12. Rfc1 {[%clk 0:02:31.7]} 12... Rfc8
{[%clk 0:01:38.6]} 13. Nb5 {[%clk 0:02:24.5]} 13... Bxd2 {[%clk 0:01:29.4]} 14.
Nxd2 {[%clk 0:02:25.4]} 14... a6 {[%clk 0:00:54.8]} 15. Nc3 {[%clk 0:02:06.6]}
15... a5 {[%clk 0:00:44.6]} 16. Nb5 {[%clk 0:02:00.7]} 16... g6 {[%clk
0:00:24.6]} 17. Nf3 {[%clk 0:01:52.9]} 17... Ba6 {[%clk 0:00:22.1]} 18. Nd2
{[%clk 0:01:41.8]} 18... Ne8 {[%clk 0:00:13.9]} 19. h3 {[%clk 0:01:40.3]} 19...
Kg7 {[%clk 0:00:09.2]} 20. Rxc8 {[%clk 0:01:38.7]} 20... Rxc8 {[%clk 0:00:08.6]}
21. Na7 {[%clk 0:01:24.1]} 21... Rc7 {[%clk 0:00:08.9]} 22. Bxa6 {[%clk
0:01:23.2]} 22... Rxa7 {[%clk 0:00:09.1]} 23. Bd3 {[%clk 0:01:23]} 23... Rc7
{[%clk 0:00:08.1]} 24. Nf3 {[%clk 0:01:20.3]} 24... Nd6 {[%clk 0:00:08.1]} 25.
Qa3 {[%clk 0:01:20.4]} 25... Kf8 {[%clk 0:00:07.6]} 26. Kf1 {[%clk 0:01:18.6]}
26... Nc4 {[%clk 0:00:06.6]} 27. Qxe7+ {[%clk 0:01:13.9]} 27... Kxe7 {[%clk
0:00:07.5]} 28. Rb1 {[%clk 0:01:02.4]} 28... f6 {[%clk 0:00:05.3]} 29. Ke2
{[%clk 0:00:46.6]} 29... Nd6 {[%clk 0:00:05.9]} 30. Nd2 {[%clk 0:00:45.4]} 30...
e5 {[%clk 0:00:06.3]} 31. f3 {[%clk 0:00:42.8]} 31... exd4 {[%clk 0:00:05]} 32.
exd4 {[%clk 0:00:43.7]} 32... Nf8 {[%clk 0:00:04.8]} 33. Ke3 {[%clk 0:00:42]}
33... Ne6 {[%clk 0:00:04.8]} 34. Nb3 {[%clk 0:00:32.7]} 34... f5 {[%clk
0:00:04.6]} 35. g3 {[%clk 0:00:31.6]} 35... Kf6 {[%clk 0:00:04.1]} 36. h4 {[%clk
0:00:31.6]} 36... Nc4+ {[%clk 0:00:02.8]} 37. Kf2 {[%clk 0:00:32]} 37... f4
{[%clk 0:00:02.9]} 38. g4 {[%clk 0:00:29.1]} 38... h6 {[%clk 0:00:03.4]} 39. Ke2
{[%clk 0:00:21.8]} 39... Ne3 {[%clk 0:00:03.7]} 40. Rg1 {[%clk 0:00:15.6]} 40...
Kg7 {[%clk 0:00:03.3]} 41. Kd2 {[%clk 0:00:15.6]} 41... Rc8 {[%clk 0:00:03.4]}
42. Rh1 {[%clk 0:00:15.3]} 42... Rc7 {[%clk 0:00:03.6]} 43. Rg1 {[%clk
0:00:15.7]} 43... g5 {[%clk 0:00:03.2]} 44. hxg5 {[%clk 0:00:15.7]} 44... Nxg5
{[%clk 0:00:03.4]} 45. Ke2 {[%clk 0:00:15.1]} 45... Re7 {[%clk 0:00:04]} 46. Rc1
{[%clk 0:00:04.1]} 46... Nxg4+ {[%clk 0:00:04.4]} 47. Kd1 {[%clk 0:00:03.3]}
47... Nf2+ {[%clk 0:00:04.4]} 48. Kc2 {[%clk 0:00:03.6]} 48... Rc7+ {[%clk
0:00:04.7]} 49. Kd2 {[%clk 0:00:03]} 49... Rxc1 {[%clk 0:00:04.8]} 50. Nxc1
{[%clk 0:00:02.5]} 50... Nxf3+ {[%clk 0:00:05.1]} 51. Ke2 {[%clk 0:00:03.4]}
51... Nxd3 {[%clk 0:00:05.4]} 52. Kxd3 {[%clk 0:00:04]} 52... Kf6 {[%clk
0:00:05.5]} 53. Ne2 {[%clk 0:00:03.8]} 53... Kf5 {[%clk 0:00:05.9]} 54. Nc3
{[%clk 0:00:04.4]} 54... h5 {[%clk 0:00:06.2]} 55. Nxd5 {[%clk 0:00:04.5]} 55...
h4 {[%clk 0:00:06.7]} 56. Ke2 {[%clk 0:00:03.1]} 56... Nxd4+ {[%clk 0:00:03.8]}
57. Kf2 {[%clk 0:00:03.8]} 57... h3 {[%clk 0:00:02.5]} 58. Nxb6 {[%clk
0:00:04.1]} 58... f3 {[%clk 0:00:02.3]} 59. Kg3 {[%clk 0:00:03.8]} 59... Ke4
{[%clk 0:00:02.7]} 60. Nc4 {[%clk 0:00:04]} 60... Kd3 {[%clk 0:00:02.9]} 61.
Ne5+ {[%clk 0:00:03.8]} 61... Ke2 {[%clk 0:00:03]} 62. Ng4 {[%clk 0:00:04.4]}
62... h2 {[%clk 0:00:02.6]} 63. Nxh2 {[%clk 0:00:03]} 63... f2 {[%clk
0:00:03.1]} 64. Kf4 {[%clk 0:00:02.8]} 64... Nf3 {[%clk 0:00:03.4]} 0-1

[Event "Early-Titled-Tuesday-Blitz-September-05-2023"]
[Site "Chess.com"]
[Date "2023.09.05"]
[Round "8"]
[White "Gauravthegm"]
[Black "karinachess1"]
[Result "1-0"]
[WhiteElo "2427"]
[BlackElo "2565"]
[TimeControl "180+1"]
[EndTime "9:28:08 PDT"]
[Termination "Gauravthegm won on time"]

1. e4 {[%clk 0:03:00.9]} 1... e5 {[%clk 0:02:59.8]} 2. Nf3 {[%clk 0:02:58.2]}
2... Nc6 {[%clk 0:03:00.1]} 3. Bc4 {[%clk 0:02:55.5]} 3... Nf6 {[%clk
0:03:00.5]} 4. d3 {[%clk 0:02:51.5]} 4... h6 {[%clk 0:02:58.2]} 5. Nc3 {[%clk
0:02:45.2]} 5... d6 {[%clk 0:02:57.6]} 6. h3 {[%clk 0:02:41.9]} 6... g5 {[%clk
0:02:56]} 7. Be3 {[%clk 0:02:39.4]} 7... Bg7 {[%clk 0:02:53.2]} 8. Qd2 {[%clk
0:02:30.1]} 8... Be6 {[%clk 0:02:45.4]} 9. Bxe6 {[%clk 0:02:25.4]} 9... fxe6
{[%clk 0:02:46.3]} 10. d4 {[%clk 0:02:19.7]} 10... exd4 {[%clk 0:02:29.2]} 11.
Nxd4 {[%clk 0:02:19.4]} 11... Qd7 {[%clk 0:02:27.7]} 12. O-O-O {[%clk
0:02:16.3]} 12... a6 {[%clk 0:02:12.7]} 13. f3 {[%clk 0:02:12.5]} 13... O-O-O
{[%clk 0:02:10.6]} 14. Qe2 {[%clk 0:02:03.5]} 14... Nh5 {[%clk 0:01:50.4]} 15.
Qc4 {[%clk 0:01:57.3]} 15... Nxd4 {[%clk 0:01:45.7]} 16. Bxd4 {[%clk 0:01:56.5]}
16... Bxd4 {[%clk 0:01:20]} 17. Qxd4 {[%clk 0:01:57.4]} 17... Nf4 {[%clk
0:01:18.6]} 18. Qa7 {[%clk 0:01:54.4]} 18... Qc6 {[%clk 0:01:12.5]} 19. g3
{[%clk 0:01:52.2]} 19... Ng6 {[%clk 0:01:09.6]} 20. Rhf1 {[%clk 0:01:47.4]}
20... Rhf8 {[%clk 0:01:05]} 21. Ne2 {[%clk 0:01:34.1]} 21... e5 {[%clk 0:00:51]}
22. Nc3 {[%clk 0:01:31.5]} 22... Ne7 {[%clk 0:00:42.4]} 23. Rd3 {[%clk
0:01:25.3]} 23... Qb6 {[%clk 0:00:26.3]} 24. Qxb6 {[%clk 0:01:20.7]} 24... cxb6
{[%clk 0:00:27.2]} 25. Rfd1 {[%clk 0:01:19.9]} 25... Kc7 {[%clk 0:00:27.8]} 26.
Ne2 {[%clk 0:01:12.8]} 26... Rf6 {[%clk 0:00:26.2]} 27. f4 {[%clk 0:01:06.1]}
27... Rff8 {[%clk 0:00:03.5]} 28. f5 {[%clk 0:01:01.8]} 28... Ng8 {[%clk
0:00:04.1]} 29. Rc3+ {[%clk 0:01:00]} 29... Kb8 {[%clk 0:00:04]} 30. Rcd3 {[%clk
0:00:58.6]} 30... Kc7 {[%clk 0:00:04.5]} 31. Nc3 {[%clk 0:00:57.9]} 31... Nf6
{[%clk 0:00:05.1]} 32. g4 {[%clk 0:00:55.4]} 32... b5 {[%clk 0:00:05.6]} 33. a3
{[%clk 0:00:52]} 33... b6 {[%clk 0:00:05.7]} 34. Nd5+ {[%clk 0:00:50.2]} 34...
Nxd5 {[%clk 0:00:05.8]} 35. Rxd5 {[%clk 0:00:50.9]} 35... Rf6 {[%clk 0:00:05]}
36. Kd2 {[%clk 0:00:50.2]} 36... Kc6 {[%clk 0:00:05.1]} 37. Ke3 {[%clk
0:00:50.1]} 37... Rc8 {[%clk 0:00:05.3]} 38. c3 {[%clk 0:00:48.9]} 38... Re8
{[%clk 0:00:05.2]} 39. Kf3 {[%clk 0:00:49.3]} 39... Kc7 {[%clk 0:00:05.5]} 40.
Kg3 {[%clk 0:00:49.7]} 40... Rc8 {[%clk 0:00:04.4]} 41. h4 {[%clk 0:00:46.2]}
41... gxh4+ {[%clk 0:00:04.2]} 42. Kxh4 {[%clk 0:00:46.3]} 42... Rg8 {[%clk
0:00:04.9]} 43. Rg1 {[%clk 0:00:43.9]} 43... Kc6 {[%clk 0:00:04.9]} 44. Rd3
{[%clk 0:00:43]} 44... Rff8 {[%clk 0:00:04.6]} 45. Rgd1 {[%clk 0:00:35.9]} 45...
Rf6 {[%clk 0:00:04.8]} 46. Rh3 {[%clk 0:00:32.5]} 46... Rg5 {[%clk 0:00:05]} 47.
Kg3 {[%clk 0:00:30.8]} 47... Kc5 {[%clk 0:00:04.8]} 48. b3 {[%clk 0:00:24.7]}
48... Kc6 {[%clk 0:00:05.1]} 49. Rdh1 {[%clk 0:00:23.8]} 49... Rf8 {[%clk
0:00:03.9]} 50. Rxh6 {[%clk 0:00:22]} 50... Rfg8 {[%clk 0:00:04.4]} 51. R1h4
{[%clk 0:00:20]} 51... a5 {[%clk 0:00:05]} 52. R6h5 {[%clk 0:00:19]} 52... R5g7
{[%clk 0:00:04.5]} 53. Kf3 {[%clk 0:00:19.5]} 53... Kc5 {[%clk 0:00:04.4]} 54.
Rh6 {[%clk 0:00:19.7]} 54... d5 {[%clk 0:00:04.5]} 55. exd5 {[%clk 0:00:19.2]}
55... Kxd5 {[%clk 0:00:05.4]} 56. Rxb6 {[%clk 0:00:19.4]} 56... e4+ {[%clk
0:00:05.6]} 57. Kf4 {[%clk 0:00:19.5]} 57... Re7 {[%clk 0:00:06.1]} 58. Rxb5+
{[%clk 0:00:19.8]} 58... Kc6 {[%clk 0:00:06]} 59. Rxa5 {[%clk 0:00:17.8]} 59...
e3 {[%clk 0:00:06.1]} 60. Rh1 {[%clk 0:00:17.4]} 60... e2 {[%clk 0:00:06.1]} 61.
Re1 {[%clk 0:00:17.7]} 61... Rd8 {[%clk 0:00:05.4]} 62. Kf3 {[%clk 0:00:16]}
62... Rd3+ {[%clk 0:00:05.2]} 63. Kf2 {[%clk 0:00:16.3]} 63... Rxc3 {[%clk
0:00:04.9]} 64. Ra6+ {[%clk 0:00:16.6]} 64... Kb5 {[%clk 0:00:05]} 65. Re6
{[%clk 0:00:16.3]} 65... Rg7 {[%clk 0:00:05.3]} 66. R1xe2 {[%clk 0:00:14.9]}
66... Rxg4 {[%clk 0:00:05.3]} 67. R2e5+ {[%clk 0:00:15.2]} 67... Rc5 {[%clk
0:00:05]} 68. Rxc5+ {[%clk 0:00:15.6]} 68... Kxc5 {[%clk 0:00:05.9]} 69. Kf3
{[%clk 0:00:16]} 69... Rg1 {[%clk 0:00:05.8]} 70. f6 {[%clk 0:00:16]} 70... Re1
{[%clk 0:00:05.4]} 71. Rxe1 {[%clk 0:00:15.1]} 1-0

[Event "Early-Titled-Tuesday-Blitz-September-05-2023"]
[Site "Chess.com"]
[Date "2023.09.05"]
[Round "8"]
[White "onnoelgersma"]
[Black "LeoLV10"]
[Result "1/2-1/2"]
[WhiteElo "2583"]
[BlackElo "2496"]
[TimeControl "180+1"]
[EndTime "9:28:10 PDT"]
[Termination "Game drawn - insufficient material"]

1. c3 {[%clk 0:03:00.9]} 1... Nf6 {[%clk 0:02:54.8]} 2. d4 {[%clk 0:03:01.2]}
2... g6 {[%clk 0:02:54.4]} 3. Nd2 {[%clk 0:03:00.5]} 3... d5 {[%clk 0:02:54.8]}
4. e3 {[%clk 0:02:58.7]} 4... Bg7 {[%clk 0:02:55.3]} 5. Bd3 {[%clk 0:02:52.6]}
5... O-O {[%clk 0:02:56.2]} 6. f4 {[%clk 0:02:52.1]} 6... c5 {[%clk 0:02:53.7]}
7. Ngf3 {[%clk 0:02:52.6]} 7... Nc6 {[%clk 0:02:53.7]} 8. O-O {[%clk 0:02:53.2]}
8... e6 {[%clk 0:02:53.6]} 9. Ne5 {[%clk 0:02:49.2]} 9... Nd7 {[%clk 0:02:51.8]}
10. Ndf3 {[%clk 0:02:48.6]} 10... cxd4 {[%clk 0:02:46.5]} 11. exd4 {[%clk
0:02:47.5]} 11... f6 {[%clk 0:02:46.5]} 12. Nxc6 {[%clk 0:02:45]} 12... bxc6
{[%clk 0:02:47.4]} 13. b3 {[%clk 0:02:43.7]} 13... c5 {[%clk 0:02:44]} 14. Ba3
{[%clk 0:02:37.5]} 14... Qc7 {[%clk 0:02:39.1]} 15. Qe2 {[%clk 0:02:33.5]} 15...
Re8 {[%clk 0:02:38.8]} 16. Bb5 {[%clk 0:02:31.4]} 16... a6 {[%clk 0:02:04.3]}
17. Bxd7 {[%clk 0:02:21.1]} 17... Bxd7 {[%clk 0:02:05.2]} 18. Bxc5 {[%clk
0:02:19.9]} 18... e5 {[%clk 0:02:04.6]} 19. fxe5 {[%clk 0:02:09.5]} 19... fxe5
{[%clk 0:02:04.9]} 20. Qf2 {[%clk 0:02:09.7]} 20... e4 {[%clk 0:02:01.8]} 21.
Ne5 {[%clk 0:02:09.7]} 21... Be6 {[%clk 0:01:55.3]} 22. b4 {[%clk 0:02:06.2]}
22... Rac8 {[%clk 0:01:06.7]} 23. Qe2 {[%clk 0:02:02.9]} 23... Qb7 {[%clk
0:01:04.9]} 24. a3 {[%clk 0:02:01.6]} 24... Rc7 {[%clk 0:01:02.3]} 25. Rf2
{[%clk 0:01:57.2]} 25... Qc8 {[%clk 0:00:54.8]} 26. Raf1 {[%clk 0:01:57.1]}
26... Bf5 {[%clk 0:00:39.8]} 27. h3 {[%clk 0:01:55.5]} 27... h5 {[%clk
0:00:34.1]} 28. Qe3 {[%clk 0:01:55]} 28... Kh7 {[%clk 0:00:32.8]} 29. g4 {[%clk
0:01:44.9]} 29... hxg4 {[%clk 0:00:30.9]} 30. hxg4 {[%clk 0:01:45.8]} 30... Bxg4
{[%clk 0:00:30.8]} 31. Rf7 {[%clk 0:01:45.5]} 31... Rxf7 {[%clk 0:00:28.7]} 32.
Rxf7 {[%clk 0:01:46.4]} 32... Bh5 {[%clk 0:00:23.4]} 33. Nd7 {[%clk 0:01:12.2]}
33... Kg8 {[%clk 0:00:20.5]} 34. Qf4 {[%clk 0:01:12.3]} 34... e3 {[%clk
0:00:18.4]} 35. Bd6 {[%clk 0:00:56.9]} 35... e2 {[%clk 0:00:17.5]} 36. Rxg7+
{[%clk 0:00:57.5]} 36... Kxg7 {[%clk 0:00:14.9]} 37. Be5+ {[%clk 0:00:58.1]}
37... Rxe5 {[%clk 0:00:09]} 38. Qxe5+ {[%clk 0:00:58.6]} 38... Kh7 {[%clk
0:00:07.4]} 39. Nf6+ {[%clk 0:00:58.7]} 39... Kh6 {[%clk 0:00:07.8]} 40. Nxh5
{[%clk 0:00:55]} 40... gxh5 {[%clk 0:00:06.2]} 41. Qxe2 {[%clk 0:00:48]} 41...
Qxc3 {[%clk 0:00:06.1]} 42. Qe6+ {[%clk 0:00:46.1]} 42... Kg7 {[%clk 0:00:06.5]}
43. Qe5+ {[%clk 0:00:45.8]} 43... Kg6 {[%clk 0:00:05.9]} 44. Qd6+ {[%clk
0:00:45.9]} 44... Kh7 {[%clk 0:00:05.6]} 45. Qd7+ {[%clk 0:00:43.9]} 45... Kg6
{[%clk 0:00:05.5]} 46. Qxd5 {[%clk 0:00:44]} 46... Qa1+ {[%clk 0:00:05.4]} 47.
Kg2 {[%clk 0:00:43.8]} 47... Qb2+ {[%clk 0:00:05.9]} 48. Kf1 {[%clk 0:00:43.2]}
48... Qc1+ {[%clk 0:00:04.4]} 49. Ke2 {[%clk 0:00:43.5]} 49... Qb2+ {[%clk
0:00:04.7]} 50. Kf3 {[%clk 0:00:35.7]} 50... Qxa3+ {[%clk 0:00:04.7]} 51. Ke4
{[%clk 0:00:36.1]} 51... Qxb4 {[%clk 0:00:03.8]} 52. Qg8+ {[%clk 0:00:36.1]}
52... Kf6 {[%clk 0:00:03.8]} 53. Qh8+ {[%clk 0:00:36]} 53... Kg5 {[%clk
0:00:04.2]} 54. Qg7+ {[%clk 0:00:36.3]} 54... Kh4 {[%clk 0:00:04.3]} 55. Qf6+
{[%clk 0:00:35.2]} 55... Kg4 {[%clk 0:00:04]} 56. Qf4+ {[%clk 0:00:35.3]} 56...
Kh3 {[%clk 0:00:04]} 57. Qg5 {[%clk 0:00:34.9]} 57... h4 {[%clk 0:00:04.1]} 58.
Qe3+ {[%clk 0:00:31]} 58... Kh2 {[%clk 0:00:04.3]} 59. Qf2+ {[%clk 0:00:30.9]}
59... Kh3 {[%clk 0:00:04.9]} 60. Qf3+ {[%clk 0:00:30]} 60... Kh2 {[%clk
0:00:05.4]} 61. Ke5 {[%clk 0:00:29.5]} 61... Qe7+ {[%clk 0:00:04.9]} 62. Kf4
{[%clk 0:00:27]} 62... Qf7+ {[%clk 0:00:04.5]} 63. Kg4 {[%clk 0:00:27.6]} 63...
Qd7+ {[%clk 0:00:02.7]} 64. Kxh4 {[%clk 0:00:23.3]} 64... Qxd4+ {[%clk
0:00:02.8]} 65. Kg5 {[%clk 0:00:23.9]} 65... Qe5+ {[%clk 0:00:02.6]} 66. Kg4
{[%clk 0:00:23.6]} 66... Qe6+ {[%clk 0:00:02]} 67. Kh5 {[%clk 0:00:21.6]} 67...
Qe8+ {[%clk 0:00:02]} 68. Kh6 {[%clk 0:00:20.6]} 68... Qh8+ {[%clk 0:00:02.6]}
69. Kg6 {[%clk 0:00:21.2]} 69... Qg8+ {[%clk 0:00:03.2]} 70. Kh5 {[%clk
0:00:21.3]} 70... Qh8+ {[%clk 0:00:03.3]} 71. Kg5 {[%clk 0:00:21.8]} 71... Qg7+
{[%clk 0:00:03.7]} 72. Kh4 {[%clk 0:00:22.3]} 72... Qh6+ {[%clk 0:00:03.9]} 73.
Kg4 {[%clk 0:00:22.8]} 73... Qg6+ {[%clk 0:00:04.5]} 74. Kh4 {[%clk 0:00:22.5]}
74... Qh6+ {[%clk 0:00:03.6]} 75. Kg4 {[%clk 0:00:22.9]} 75... Qe6+ {[%clk
0:00:04.3]} 76. Kh4 {[%clk 0:00:23.3]} 76... Qc4+ {[%clk 0:00:04.4]} 77. Kg5
{[%clk 0:00:23.2]} 77... Qc5+ {[%clk 0:00:04.4]} 78. Kh4 {[%clk 0:00:22.6]}
78... Qd4+ {[%clk 0:00:04.5]} 79. Kh5 {[%clk 0:00:23]} 79... Qe5+ {[%clk
0:00:03.8]} 80. Kg6 {[%clk 0:00:22.2]} 80... Qg3+ {[%clk 0:00:03.9]} 81. Qxg3+
{[%clk 0:00:22]} 81... Kxg3 {[%clk 0:00:04.8]} 82. Kf5 {[%clk 0:00:22.9]} 82...
Kf3 {[%clk 0:00:04.4]} 83. Ke5 {[%clk 0:00:23.8]} 83... Ke3 {[%clk 0:00:04.5]}
84. Kd5 {[%clk 0:00:24.1]} 84... Kd3 {[%clk 0:00:04.9]} 85. Kc5 {[%clk
0:00:24.5]} 85... Kc3 {[%clk 0:00:05.1]} 86. Kb6 {[%clk 0:00:24.8]} 86... Kb4
{[%clk 0:00:05.8]} 87. Kxa6 {[%clk 0:00:25.2]} 1/2-1/2